[Event "Early-Titled-Tuesday-Blitz-August-29-2023"]
[Site "Chess.com"]
[Date "2023.08.29"]
[Round "1"]
[White "BahadirOzen"]
[Black "FREDERICKtheMATE"]
[Result "1-0"]
[WhiteElo "2823"]
[BlackElo "2439"]
[TimeControl "180+1"]
[EndTime "8:06:04 PDT"]
[Termination "BahadirOzen won by resignation"]

1. g3 {[%clk 0:03:00.9]} 1... c5 {[%clk 0:03:00.4]} 2. Bg2 {[%clk 0:03:00.4]}
2... Nc6 {[%clk 0:03:01.1]} 3. Nf3 {[%clk 0:02:59.2]} 3... g6 {[%clk 0:03:01.6]}
4. O-O {[%clk 0:02:59.1]} 4... Bg7 {[%clk 0:03:02.3]} 5. d3 {[%clk 0:02:59.1]}
5... d5 {[%clk 0:03:03]} 6. e4 {[%clk 0:02:58.2]} 6... Nf6 {[%clk 0:03:03.7]} 7.
Nbd2 {[%clk 0:02:57.4]} 7... O-O {[%clk 0:03:02.4]} 8. Re1 {[%clk 0:02:56.5]}
8... Qc7 {[%clk 0:03:02.8]} 9. exd5 {[%clk 0:02:38]} 9... Nxd5 {[%clk
0:03:03.7]} 10. Nb3 {[%clk 0:02:38.6]} 10... b6 {[%clk 0:02:58.7]} 11. c4 {[%clk
0:02:38.7]} 11... Ndb4 {[%clk 0:02:51.7]} 12. a3 {[%clk 0:02:35.8]} 12... Na6
{[%clk 0:02:50.9]} 13. Bf4 {[%clk 0:02:34.5]} 13... Qd7 {[%clk 0:02:42.5]} 14.
d4 {[%clk 0:02:22.7]} 14... cxd4 {[%clk 0:02:35.7]} 15. Nfxd4 {[%clk 0:02:22]}
15... Bb7 {[%clk 0:02:18.6]} 16. Nxc6 {[%clk 0:02:19.4]} 16... Bxc6 {[%clk
0:02:19.1]} 17. Qxd7 {[%clk 0:02:18.9]} 17... Bxd7 {[%clk 0:02:20]} 18. Bxa8
{[%clk 0:02:18.2]} 18... Rxa8 {[%clk 0:02:20.9]} 19. Be5 {[%clk 0:01:40.5]}
19... Be6 {[%clk 0:02:16.8]} 20. Bxg7 {[%clk 0:01:40.3]} 20... Kxg7 {[%clk
0:02:16.5]} 21. Nd4 {[%clk 0:01:39.9]} 21... Bxc4 {[%clk 0:02:15.8]} 22. Rac1
{[%clk 0:01:39.7]} 22... Bd5 {[%clk 0:02:10.7]} 23. Rxe7 {[%clk 0:01:39.6]}
23... Nc5 {[%clk 0:02:09.3]} 24. b4 {[%clk 0:01:38.3]} 24... Nb3 {[%clk
0:02:04.3]} 25. Nxb3 {[%clk 0:01:36.9]} 25... Bxb3 {[%clk 0:02:05.2]} 26. Rc3
{[%clk 0:01:33.5]} 26... Bd5 {[%clk 0:02:01.4]} 27. f3 {[%clk 0:01:28.1]} 27...
Kf6 {[%clk 0:01:57.5]} 28. Rd7 {[%clk 0:01:25.9]} 28... Be6 {[%clk 0:01:57.6]}
29. Rdc7 {[%clk 0:01:22.4]} 29... a5 {[%clk 0:01:55.2]} 30. b5 {[%clk
0:01:17.4]} 30... Rd8 {[%clk 0:01:49.8]} 31. R7c6 {[%clk 0:01:14.4]} 31... Rb8
{[%clk 0:01:44.6]} 32. Kf2 {[%clk 0:01:14.8]} 32... Ke7 {[%clk 0:01:42.9]} 33.
a4 {[%clk 0:01:14.4]} 33... Bd5 {[%clk 0:01:35.7]} 34. Rc7+ {[%clk 0:01:06.8]}
34... Kd6 {[%clk 0:01:33.4]} 35. Ke3 {[%clk 0:01:03.8]} 35... Re8+ {[%clk
0:01:32.5]} 36. Kd2 {[%clk 0:01:03.1]} 36... h5 {[%clk 0:01:27.6]} 37. h3 {[%clk
0:01:03.1]} 37... Re5 {[%clk 0:01:26.6]} 38. Ra7 {[%clk 0:00:57.1]} 38... Re8
{[%clk 0:01:11.7]} 39. h4 {[%clk 0:00:52.8]} 39... Rh8 {[%clk 0:01:07.3]} 40.
Rd3 {[%clk 0:00:51.8]} 40... Rf8 {[%clk 0:00:58.1]} 41. Rb7 {[%clk 0:00:49.9]}
41... Kc5 {[%clk 0:00:58]} 42. Rc7+ {[%clk 0:00:50]} 42... Kd6 {[%clk
0:00:56.2]} 43. Rc6+ {[%clk 0:00:50.1]} 1-0

[Event "Early-Titled-Tuesday-Blitz-August-29-2023"]
[Site "Chess.com"]
[Date "2023.08.29"]
[Round "1"]
[White "Galileo22"]
[Black "KVAIDAN"]
[Result "1-0"]
[WhiteElo "2704"]
[BlackElo "2385"]
[TimeControl "180+1"]
[EndTime "8:06:05 PDT"]
[Termination "Galileo22 won by checkmate"]

1. e4 {[%clk 0:02:56.8]} 1... e5 {[%clk 0:02:59.1]} 2. Nf3 {[%clk 0:02:57.1]}
2... d5 {[%clk 0:02:59.2]} 3. d4 {[%clk 0:02:36.5]} 3... dxe4 {[%clk 0:02:57.5]}
4. Nxe5 {[%clk 0:02:35.4]} 4... Bd6 {[%clk 0:02:57.6]} 5. Nc4 {[%clk 0:02:30.1]}
5... Nf6 {[%clk 0:02:53.8]} 6. Be2 {[%clk 0:02:26.2]} 6... Nc6 {[%clk
0:02:51.4]} 7. Nc3 {[%clk 0:02:11]} 7... Bb4 {[%clk 0:02:49.7]} 8. a3 {[%clk
0:01:53.5]} 8... Bxc3+ {[%clk 0:02:47.2]} 9. bxc3 {[%clk 0:01:54.4]} 9... Nd5
{[%clk 0:02:41.7]} 10. Qd2 {[%clk 0:01:51]} 10... O-O {[%clk 0:02:41.3]} 11. O-O
{[%clk 0:01:37.7]} 11... f5 {[%clk 0:02:41.2]} 12. f4 {[%clk 0:01:31.4]} 12...
Nce7 {[%clk 0:02:18.6]} 13. Ne5 {[%clk 0:01:21.9]} 13... Ng6 {[%clk 0:02:15.3]}
14. c4 {[%clk 0:01:13.8]} 14... e3 {[%clk 0:02:09.4]} 15. Qe1 {[%clk 0:01:03.7]}
15... Ndxf4 {[%clk 0:02:09.5]} 16. Nxg6 {[%clk 0:00:41.2]} 16... hxg6 {[%clk
0:01:53.8]} 17. Rxf4 {[%clk 0:00:39.9]} 17... g5 {[%clk 0:01:54.2]} 18. Rf1
{[%clk 0:00:35]} 18... Qxd4 {[%clk 0:01:48.6]} 19. Rb1 {[%clk 0:00:33.5]} 19...
f4 {[%clk 0:01:48.3]} 20. Bb2 {[%clk 0:00:31.6]} 20... Qc5 {[%clk 0:01:45.9]}
21. Qc3 {[%clk 0:00:30.6]} 21... Qe7 {[%clk 0:01:45.3]} 22. Rbd1 {[%clk
0:00:28.4]} 22... Bf5 {[%clk 0:01:44.5]} 23. c5 {[%clk 0:00:20.9]} 23... Rad8
{[%clk 0:01:40.6]} 24. c6 {[%clk 0:00:14.2]} 24... b6 {[%clk 0:01:38.8]} 25. a4
{[%clk 0:00:13.9]} 25... a5 {[%clk 0:01:38.6]} 26. Ba3 {[%clk 0:00:13.2]} 26...
Qe4 {[%clk 0:01:27.4]} 27. Bxf8 {[%clk 0:00:11.4]} 27... Rxf8 {[%clk 0:01:27.5]}
28. Bd3 {[%clk 0:00:11.3]} 28... e2 {[%clk 0:01:21.2]} 29. Bxe4 {[%clk
0:00:10.8]} 29... exf1=Q+ {[%clk 0:01:20.2]} 30. Kxf1 {[%clk 0:00:09.9]} 30...
Bxe4 {[%clk 0:01:20.6]} 31. Rd7 {[%clk 0:00:10.5]} 31... Rf6 {[%clk 0:01:15.4]}
32. Qc4+ {[%clk 0:00:09.5]} 32... Kh7 {[%clk 0:01:15.1]} 33. Qxe4+ {[%clk
0:00:09.9]} 33... Kh6 {[%clk 0:01:15.6]} 34. Rd8 {[%clk 0:00:09.8]} 34... g4
{[%clk 0:01:14.6]} 35. Rh8+ {[%clk 0:00:09.1]} 35... Kg5 {[%clk 0:01:14.6]} 36.
Qe5+ {[%clk 0:00:09.6]} 36... Rf5 {[%clk 0:01:15.1]} 37. Qxg7# {[%clk
0:00:09.9]} 1-0

[Event "Early-Titled-Tuesday-Blitz-August-29-2023"]
[Site "Chess.com"]
[Date "2023.08.29"]
[Round "1"]
[White "Beca95"]
[Black "angryspacevoid"]
[Result "1-0"]
[WhiteElo "2977"]
[BlackElo "2512"]
[TimeControl "180+1"]
[EndTime "8:06:07 PDT"]
[Termination "Beca95 won by checkmate"]

1. d4 {[%clk 0:02:59.2]} 1... d5 {[%clk 0:02:58]} 2. Bg5 {[%clk 0:02:59.5]} 2...
c5 {[%clk 0:02:54.7]} 3. e3 {[%clk 0:02:57.9]} 3... Nc6 {[%clk 0:02:51.4]} 4. c3
{[%clk 0:02:56.5]} 4... Nf6 {[%clk 0:02:50.2]} 5. Bxf6 {[%clk 0:02:51.2]} 5...
exf6 {[%clk 0:02:50.1]} 6. Nd2 {[%clk 0:02:48.4]} 6... Bf5 {[%clk 0:02:46.7]} 7.
dxc5 {[%clk 0:02:48.6]} 7... Bxc5 {[%clk 0:02:46.4]} 8. Ngf3 {[%clk 0:02:48.2]}
8... O-O {[%clk 0:02:44.3]} 9. Be2 {[%clk 0:02:48.7]} 9... a5 {[%clk 0:02:31]}
10. a4 {[%clk 0:02:46.7]} 10... Re8 {[%clk 0:02:28.4]} 11. O-O {[%clk
0:02:45.3]} 11... h5 {[%clk 0:02:26.8]} 12. Nb3 {[%clk 0:02:44.1]} 12... Bd6
{[%clk 0:02:26.2]} 13. Nbd4 {[%clk 0:02:43.8]} 13... Bg6 {[%clk 0:02:25.2]} 14.
Nb5 {[%clk 0:02:42.7]} 14... Bb8 {[%clk 0:02:23.8]} 15. Qb3 {[%clk 0:02:40.9]}
15... Be4 {[%clk 0:02:14]} 16. Rad1 {[%clk 0:02:38.3]} 16... Qe7 {[%clk
0:02:07.9]} 17. Nd2 {[%clk 0:02:34.4]} 17... Qe5 {[%clk 0:01:35.3]} 18. g3
{[%clk 0:02:33.2]} 18... h4 {[%clk 0:01:34.3]} 19. Nxe4 {[%clk 0:02:32.4]} 19...
dxe4 {[%clk 0:01:34.8]} 20. Qd5 {[%clk 0:02:31.2]} 20... hxg3 {[%clk 0:01:33.5]}
21. hxg3 {[%clk 0:02:29.6]} 21... Qe7 {[%clk 0:01:26.8]} 22. Kg2 {[%clk
0:02:29.2]} 22... g6 {[%clk 0:01:25.6]} 23. Rh1 {[%clk 0:02:25.2]} 23... f5
{[%clk 0:01:25.7]} 24. Rh6 {[%clk 0:02:23.8]} 24... Kg7 {[%clk 0:01:23.4]} 25.
Rdh1 {[%clk 0:02:23.6]} 25... Be5 {[%clk 0:01:11.1]} 26. Bc4 {[%clk 0:02:12]}
26... Rad8 {[%clk 0:01:08.1]} 27. Rh7+ {[%clk 0:02:10.6]} 27... Kf6 {[%clk
0:00:54.4]} 28. Rxf7+ {[%clk 0:02:05.4]} 28... Kg5 {[%clk 0:00:54]} 29. Rxe7
{[%clk 0:02:05.4]} 29... Rxe7 {[%clk 0:00:51.8]} 30. Qc5 {[%clk 0:02:05.4]}
30... Rd2 {[%clk 0:00:51.4]} 31. Nd4 {[%clk 0:02:03.3]} 31... Bf6 {[%clk
0:00:43.9]} 32. Qd6 {[%clk 0:01:43.2]} 32... Ne5 {[%clk 0:00:33.3]} 33. Be2
{[%clk 0:01:28]} 33... Rxb2 {[%clk 0:00:21.7]} 34. Qb8 {[%clk 0:01:16.1]} 34...
Bg7 {[%clk 0:00:16.9]} 35. Qd8 {[%clk 0:01:14.4]} 35... Bf6 {[%clk 0:00:17.2]}
36. Qf8 {[%clk 0:01:13.9]} 36... Nd7 {[%clk 0:00:15.2]} 37. Qh6# {[%clk
0:01:12.7]} 1-0

[Event "Early-Titled-Tuesday-Blitz-August-29-2023"]
[Site "Chess.com"]
[Date "2023.08.29"]
[Round "1"]
[White "KrokerGuy"]
[Black "Arystanner"]
[Result "1-0"]
[WhiteElo "2483"]
[BlackElo "2870"]
[TimeControl "180+1"]
[EndTime "8:06:07 PDT"]
[Termination "KrokerGuy won by resignation"]

1. e4 {[%clk 0:03:00.9]} 1... c5 {[%clk 0:02:59.2]} 2. Nf3 {[%clk 0:03:00.7]}
2... d6 {[%clk 0:02:59.4]} 3. d4 {[%clk 0:03:01.4]} 3... cxd4 {[%clk 0:03:00]}
4. Nxd4 {[%clk 0:03:02.3]} 4... Nf6 {[%clk 0:03:00.2]} 5. Nc3 {[%clk 0:03:03]}
5... Nc6 {[%clk 0:03:00.4]} 6. Bg5 {[%clk 0:03:03.4]} 6... e6 {[%clk 0:03:00.7]}
7. Qd3 {[%clk 0:03:04.1]} 7... Bd7 {[%clk 0:02:59.9]} 8. Ndb5 {[%clk 0:02:59.1]}
8... Nb4 {[%clk 0:02:59.7]} 9. Qd2 {[%clk 0:02:56.4]} 9... a6 {[%clk 0:02:43]}
10. Bxf6 {[%clk 0:02:56.5]} 10... gxf6 {[%clk 0:02:41.8]} 11. Nd4 {[%clk
0:02:46.3]} 11... h5 {[%clk 0:02:36.6]} 12. a3 {[%clk 0:02:42.8]} 12... Nc6
{[%clk 0:02:36]} 13. Nxc6 {[%clk 0:02:27.7]} 13... Bxc6 {[%clk 0:02:32.9]} 14.
O-O-O {[%clk 0:02:28.3]} 14... Bh6 {[%clk 0:02:28.8]} 15. f4 {[%clk 0:02:28.6]}
15... e5 {[%clk 0:02:28.9]} 16. g3 {[%clk 0:02:23.8]} 16... Qe7 {[%clk 0:02:15]}
17. Bh3 {[%clk 0:02:04.1]} 17... Rd8 {[%clk 0:02:12.8]} 18. Kb1 {[%clk
0:01:51.6]} 18... Kf8 {[%clk 0:02:12.6]} 19. Nd5 {[%clk 0:01:42.6]} 19... Bxd5
{[%clk 0:02:12.5]} 20. Qxd5 {[%clk 0:01:43.5]} 20... exf4 {[%clk 0:02:04.6]} 21.
Qxh5 {[%clk 0:01:35.4]} 21... Bg7 {[%clk 0:01:51.1]} 22. Qg4 {[%clk 0:01:35.5]}
22... Qxe4 {[%clk 0:01:34.3]} 23. Rhe1 {[%clk 0:01:15.2]} 23... Qg6 {[%clk
0:01:28.5]} 24. Rxd6 {[%clk 0:01:15.1]} 24... Rb8 {[%clk 0:01:13.7]} 25. Qd7
{[%clk 0:00:51.5]} 25... Bh6 {[%clk 0:01:02.5]} 26. Bf5 {[%clk 0:00:43.1]} 26...
Qh5 {[%clk 0:01:00.5]} 27. Rxf6 {[%clk 0:00:34.9]} 27... Bg5 {[%clk 0:00:49.5]}
28. g4 {[%clk 0:00:28.9]} 1-0

[Event "Early-Titled-Tuesday-Blitz-August-29-2023"]
[Site "Chess.com"]
[Date "2023.08.29"]
[Round "1"]
[White "FeketeBarika"]
[Black "wqws"]
[Result "0-1"]
[WhiteElo "2319"]
[BlackElo "2645"]
[TimeControl "180+1"]
[EndTime "8:06:07 PDT"]
[Termination "wqws won on time"]

1. Nf3 {[%clk 0:02:55.6]} 1... d5 {[%clk 0:02:56.4]} 2. c4 {[%clk 0:02:54.5]}
2... d4 {[%clk 0:02:56.1]} 3. g3 {[%clk 0:02:47.6]} 3... c5 {[%clk 0:02:55.4]}
4. Bg2 {[%clk 0:02:42.9]} 4... Nc6 {[%clk 0:02:55.5]} 5. e3 {[%clk 0:02:42.3]}
5... e5 {[%clk 0:02:54.7]} 6. exd4 {[%clk 0:02:41.6]} 6... e4 {[%clk 0:02:42.5]}
7. Nh4 {[%clk 0:02:30]} 7... g5 {[%clk 0:02:40]} 8. d5 {[%clk 0:02:26.6]} 8...
Nd4 {[%clk 0:02:40]} 9. Bxe4 {[%clk 0:02:19.7]} 9... gxh4 {[%clk 0:02:39.4]} 10.
O-O {[%clk 0:02:18.9]} 10... Nf6 {[%clk 0:02:34.8]} 11. Bh1 {[%clk 0:02:03]}
11... Be7 {[%clk 0:02:27.5]} 12. d3 {[%clk 0:02:02]} 12... Bg4 {[%clk 0:02:20]}
13. f3 {[%clk 0:02:00.4]} 13... Bh3 {[%clk 0:02:19.9]} 14. Re1 {[%clk
0:02:00.2]} 14... hxg3 {[%clk 0:02:19.7]} 15. hxg3 {[%clk 0:01:58.5]} 15... Rg8
{[%clk 0:02:19.7]} 16. Kf2 {[%clk 0:01:54.6]} 16... Qd7 {[%clk 0:02:16.1]} 17.
Nc3 {[%clk 0:01:29.7]} 17... O-O-O {[%clk 0:02:14]} 18. Qa4 {[%clk 0:00:58.5]}
18... Bd6 {[%clk 0:02:08.1]} 19. Qxd7+ {[%clk 0:00:51]} 19... Bxd7 {[%clk
0:02:07.5]} 20. Rg1 {[%clk 0:00:39.7]} 20... Rde8 {[%clk 0:02:02.1]} 21. Ne4
{[%clk 0:00:38.4]} 21... Nxe4+ {[%clk 0:02:01.7]} 22. dxe4 {[%clk 0:00:39.3]}
22... f5 {[%clk 0:02:01.6]} 23. Bf4 {[%clk 0:00:28.2]} 23... Kc7 {[%clk
0:02:01.5]} 24. Rae1 {[%clk 0:00:20.2]} 24... fxe4 {[%clk 0:02:01.2]} 25. fxe4
{[%clk 0:00:20.2]} 25... Be5 {[%clk 0:02:01.4]} 26. b3 {[%clk 0:00:16.3]} 26...
Kd6 {[%clk 0:02:01.6]} 27. Ref1 {[%clk 0:00:14.3]} 27... Bh3 {[%clk 0:02:00.4]}
28. Bg2 {[%clk 0:00:13.6]} 28... Bxg2 {[%clk 0:02:00.1]} 29. Rxg2 {[%clk
0:00:14.5]} 29... Ref8 {[%clk 0:02:00.5]} 30. Kg1 {[%clk 0:00:13.2]} 30... Bxf4
{[%clk 0:01:58.6]} 31. gxf4 {[%clk 0:00:13.1]} 31... Ne2+ {[%clk 0:01:58.6]} 32.
Kh2 {[%clk 0:00:13.1]} 32... Rxg2+ {[%clk 0:01:58.9]} 33. Kxg2 {[%clk
0:00:13.6]} 33... Nxf4+ {[%clk 0:01:59.5]} 34. Kh2 {[%clk 0:00:13.8]} 34... Ke5
{[%clk 0:01:59.2]} 35. Rg1 {[%clk 0:00:14]} 35... Kxe4 {[%clk 0:01:59.2]} 36.
Rg7 {[%clk 0:00:14.2]} 36... h5 {[%clk 0:01:58.4]} 37. Rxb7 {[%clk 0:00:14.1]}
37... Kf3 {[%clk 0:01:57.6]} 38. Rxa7 {[%clk 0:00:13.4]} 38... Re8 {[%clk
0:01:58]} 39. Rg7 {[%clk 0:00:10.3]} 39... Re2+ {[%clk 0:01:58.9]} 40. Kh1
{[%clk 0:00:10.4]} 40... h4 {[%clk 0:01:59.4]} 41. d6 {[%clk 0:00:10.1]} 41...
Nh5 {[%clk 0:01:59.5]} 42. Rf7+ {[%clk 0:00:09.4]} 42... Kg4 {[%clk 0:01:57]}
43. d7 {[%clk 0:00:05.4]} 43... Rd2 {[%clk 0:01:56.8]} 44. Re7 {[%clk
0:00:04.7]} 44... Ng3+ {[%clk 0:01:55.7]} 45. Kg1 {[%clk 0:00:04.1]} 45... h3
{[%clk 0:01:56.1]} 46. Rg7+ {[%clk 0:00:03.1]} 46... Kf4 {[%clk 0:01:56.2]} 47.
Rf7+ {[%clk 0:00:03.3]} 47... Ke5 {[%clk 0:01:56.6]} 48. Re7+ {[%clk 0:00:03.4]}
48... Kf6 {[%clk 0:01:56.1]} 0-1

[Event "Early-Titled-Tuesday-Blitz-August-29-2023"]
[Site "Chess.com"]
[Date "2023.08.29"]
[Round "1"]
[White "borocotoajua"]
[Black "MBA_CHESS_2021"]
[Result "0-1"]
[WhiteElo "2500"]
[BlackElo "2264"]
[TimeControl "180+1"]
[EndTime "8:06:08 PDT"]
[Termination "MBA_CHESS_2021 won on time"]

1. d4 {[%clk 0:02:56.1]} 1... d5 {[%clk 0:02:59.6]} 2. Nf3 {[%clk 0:02:55.5]}
2... c6 {[%clk 0:02:59.6]} 3. c4 {[%clk 0:02:55.6]} 3... Nf6 {[%clk 0:02:59.2]}
4. Nc3 {[%clk 0:02:53.4]} 4... dxc4 {[%clk 0:02:55.8]} 5. e4 {[%clk 0:02:51]}
5... b5 {[%clk 0:02:49]} 6. e5 {[%clk 0:02:48.2]} 6... Nd5 {[%clk 0:02:48.4]} 7.
a4 {[%clk 0:02:44.5]} 7... Nxc3 {[%clk 0:02:36.2]} 8. bxc3 {[%clk 0:02:45.4]}
8... e6 {[%clk 0:02:36.6]} 9. g3 {[%clk 0:02:36.7]} 9... Bb7 {[%clk 0:02:33.8]}
10. Bg2 {[%clk 0:02:36.2]} 10... Nd7 {[%clk 0:02:28.2]} 11. O-O {[%clk
0:02:33.7]} 11... a6 {[%clk 0:02:24.4]} 12. Ng5 {[%clk 0:02:26.4]} 12... Nb6
{[%clk 0:02:18.8]} 13. Qh5 {[%clk 0:02:14.6]} 13... g6 {[%clk 0:02:17.3]} 14.
Qf3 {[%clk 0:02:12.4]} 14... Qd7 {[%clk 0:02:04.5]} 15. Qf6 {[%clk 0:01:57.8]}
15... Rg8 {[%clk 0:01:53.2]} 16. Nxh7 {[%clk 0:01:45.8]} 16... Nd5 {[%clk
0:01:37.5]} 17. Qf3 {[%clk 0:01:45.6]} 17... Be7 {[%clk 0:01:35]} 18. Ba3 {[%clk
0:01:34.4]} 18... O-O-O {[%clk 0:01:29.2]} 19. Rfb1 {[%clk 0:00:41.8]} 19...
Bxa3 {[%clk 0:01:14.2]} 20. Rxa3 {[%clk 0:00:42.7]} 20... Rh8 {[%clk 0:01:13.4]}
21. Nf6 {[%clk 0:00:26.3]} 21... Qe7 {[%clk 0:01:13.2]} 22. Ra2 {[%clk
0:00:23.8]} 22... Nxf6 {[%clk 0:01:05.8]} 23. exf6 {[%clk 0:00:23.6]} 23... Qc7
{[%clk 0:01:05.2]} 24. axb5 {[%clk 0:00:22.5]} 24... cxb5 {[%clk 0:01:05.2]} 25.
Qe2 {[%clk 0:00:19.5]} 25... Bxg2 {[%clk 0:01:04.6]} 26. Kxg2 {[%clk 0:00:20.4]}
26... Qc6+ {[%clk 0:01:02]} 27. Kg1 {[%clk 0:00:20.6]} 27... Rxh2 {[%clk
0:01:01.1]} 0-1

[Event "Early-Titled-Tuesday-Blitz-August-29-2023"]
[Site "Chess.com"]
[Date "2023.08.29"]
[Round "1"]
[White "isaak2009"]
[Black "miraitrunks"]
[Result "1-0"]
[WhiteElo "2541"]
[BlackElo "1971"]
[TimeControl "180+1"]
[EndTime "8:06:08 PDT"]
[Termination "isaak2009 won by resignation"]

1. Nf3 {[%clk 0:02:55.2]} 1... g6 {[%clk 0:02:58.1]} 2. g3 {[%clk 0:02:53.3]}
2... Bg7 {[%clk 0:02:58.2]} 3. Bg2 {[%clk 0:02:54.2]} 3... e5 {[%clk 0:02:57.1]}
4. d3 {[%clk 0:02:53.8]} 4... Ne7 {[%clk 0:02:56.7]} 5. O-O {[%clk 0:02:47.7]}
5... O-O {[%clk 0:02:56.1]} 6. c4 {[%clk 0:02:48.6]} 6... d6 {[%clk 0:02:54.9]}
7. Nc3 {[%clk 0:02:41.7]} 7... h6 {[%clk 0:02:51.8]} 8. Rb1 {[%clk 0:02:36.2]}
8... a5 {[%clk 0:02:51]} 9. a3 {[%clk 0:02:34.1]} 9... Be6 {[%clk 0:02:50]} 10.
b4 {[%clk 0:02:33.6]} 10... axb4 {[%clk 0:02:49.6]} 11. axb4 {[%clk 0:02:34.5]}
11... Qd7 {[%clk 0:02:40.7]} 12. Ne1 {[%clk 0:02:26.4]} 12... c6 {[%clk
0:02:38.1]} 13. b5 {[%clk 0:02:10.9]} 13... Bh3 {[%clk 0:02:29.7]} 14. Nc2
{[%clk 0:02:00.6]} 14... Bxg2 {[%clk 0:02:27.5]} 15. Kxg2 {[%clk 0:02:01.5]}
15... d5 {[%clk 0:02:27.2]} 16. Ba3 {[%clk 0:01:49.8]} 16... Re8 {[%clk
0:02:20.3]} 17. cxd5 {[%clk 0:01:39.4]} 17... cxd5 {[%clk 0:02:13.6]} 18. Bb4
{[%clk 0:01:37.1]} 18... e4 {[%clk 0:01:57.2]} 19. dxe4 {[%clk 0:01:32.8]} 19...
d4 {[%clk 0:01:52.8]} 20. Bxe7 {[%clk 0:01:13]} 20... Qxe7 {[%clk 0:01:48.6]}
21. Nxd4 {[%clk 0:00:54]} 21... Qc5 {[%clk 0:01:32.7]} 22. Nd5 {[%clk
0:00:41.3]} 22... Qxd4 {[%clk 0:01:12.4]} 23. Qxd4 {[%clk 0:00:38.7]} 23... Bxd4
{[%clk 0:01:13]} 24. Nc7 {[%clk 0:00:39.6]} 24... Nd7 {[%clk 0:00:58.1]} 25.
Nxa8 {[%clk 0:00:31.1]} 25... Rxa8 {[%clk 0:00:58.7]} 26. Rfd1 {[%clk
0:00:30.9]} 26... Ra4 {[%clk 0:00:50.6]} 27. e3 {[%clk 0:00:29.3]} 27... Be5
{[%clk 0:00:37.4]} 28. Rxd7 {[%clk 0:00:27.2]} 28... Rxe4 {[%clk 0:00:37.9]} 29.
Rxb7 {[%clk 0:00:27.2]} 1-0

[Event "Early-Titled-Tuesday-Blitz-August-29-2023"]
[Site "Chess.com"]
[Date "2023.08.29"]
[Round "1"]
[White "jinbojinbo"]
[Black "Kopytkin"]
[Result "1-0"]
[WhiteElo "2694"]
[BlackElo "2374"]
[TimeControl "180+1"]
[EndTime "8:06:11 PDT"]
[Termination "jinbojinbo won on time"]

1. Nf3 {[%clk 0:03:00.6]} 1... d6 {[%clk 0:02:58.3]} 2. g3 {[%clk 0:02:58.4]}
2... e5 {[%clk 0:02:57.4]} 3. Bg2 {[%clk 0:02:59.3]} 3... g6 {[%clk 0:02:56.6]}
4. d3 {[%clk 0:02:57.8]} 4... Bg7 {[%clk 0:02:56.8]} 5. c4 {[%clk 0:02:58]} 5...
Ne7 {[%clk 0:02:51.2]} 6. Nc3 {[%clk 0:02:57.6]} 6... O-O {[%clk 0:02:51.2]} 7.
O-O {[%clk 0:02:57.4]} 7... f5 {[%clk 0:02:51.1]} 8. Qc2 {[%clk 0:02:55.8]} 8...
Nd7 {[%clk 0:02:51.1]} 9. b4 {[%clk 0:02:54.1]} 9... Nf6 {[%clk 0:02:51.1]} 10.
Bb2 {[%clk 0:02:53.9]} 10... h6 {[%clk 0:02:51.4]} 11. c5 {[%clk 0:02:49.5]}
11... g5 {[%clk 0:02:45.7]} 12. Nd2 {[%clk 0:02:42.5]} 12... Be6 {[%clk
0:02:20.2]} 13. cxd6 {[%clk 0:02:27.2]} 13... cxd6 {[%clk 0:02:19.8]} 14. Bxb7
{[%clk 0:02:27]} 14... Rb8 {[%clk 0:02:19.5]} 15. Bg2 {[%clk 0:02:27.5]} 15...
Rxb4 {[%clk 0:02:09.8]} 16. Ba3 {[%clk 0:02:27.3]} 16... Rb8 {[%clk 0:02:09]}
17. Rab1 {[%clk 0:02:27.7]} 17... Qa5 {[%clk 0:02:06.4]} 18. Bxd6 {[%clk
0:02:16.9]} 18... Rxb1 {[%clk 0:02:06.4]} 19. Rxb1 {[%clk 0:02:16.4]} 19... Re8
{[%clk 0:02:02]} 20. Nb3 {[%clk 0:02:10.7]} 20... Qa6 {[%clk 0:01:49.9]} 21.
Bxe5 {[%clk 0:02:09.7]} 21... Nc6 {[%clk 0:01:48.1]} 22. Nc5 {[%clk 0:02:05.9]}
22... Qc8 {[%clk 0:01:43.3]} 23. Nxe6 {[%clk 0:02:04.6]} 23... Rxe6 {[%clk
0:01:38.3]} 24. Bxf6 {[%clk 0:02:02.2]} 24... Bxf6 {[%clk 0:01:38.8]} 25. Nd5
{[%clk 0:02:02.6]} 25... Qe8 {[%clk 0:00:57.6]} 26. Nxf6+ {[%clk 0:02:01]} 26...
Rxf6 {[%clk 0:00:58.5]} 27. Bxc6 {[%clk 0:01:57.8]} 27... Qxc6 {[%clk
0:00:54.9]} 28. Rb8+ {[%clk 0:01:55.6]} 28... Kg7 {[%clk 0:00:53.4]} 29. Qxc6
{[%clk 0:01:55.5]} 29... Rxc6 {[%clk 0:00:53.5]} 30. Rb7+ {[%clk 0:01:56]} 30...
Kg6 {[%clk 0:00:41]} 31. Rxa7 {[%clk 0:01:56.1]} 31... Rc2 {[%clk 0:00:20.7]}
32. e3 {[%clk 0:01:55.8]} 32... f4 {[%clk 0:00:17.3]} 33. gxf4 {[%clk
0:01:48.2]} 33... gxf4 {[%clk 0:00:18.2]} 34. exf4 {[%clk 0:01:42]} 34... Kf5
{[%clk 0:00:16.8]} 35. a4 {[%clk 0:01:40.6]} 35... h5 {[%clk 0:00:14.4]} 36. a5
{[%clk 0:01:40.4]} 36... h4 {[%clk 0:00:14.1]} 37. Kg2 {[%clk 0:01:40.2]} 37...
Ra2 {[%clk 0:00:09.4]} 38. a6 {[%clk 0:01:40.1]} 38... Kxf4 {[%clk 0:00:09.7]}
39. Ra8 {[%clk 0:01:38.8]} 39... Kg4 {[%clk 0:00:04.9]} 40. h3+ {[%clk
0:01:36.5]} 40... Kf4 {[%clk 0:00:05.2]} 41. a7 {[%clk 0:01:37]} 1-0